bitfinex/quotes_SOLUSD_20250422
["timestamp","ask_amount","ask_price","bid_price","bid_amount"]
[1745350344038,38.77712505,144.68,144.67,0.03]
[1745350345462,45.68893041,144.68,144.67,0.03]
[1745350348063,32.91180536,144.68,144.67,0.03]
[1745350348369,45.68893041,144.68,144.67,0.03]
[1745350349474,38.77712505,144.68,144.67,0.03]
[1745350351747,45.68893041,144.68,144.67,0.03]
[1745350353570,38.77712505,144.68,144.67,0.03]
[1745350354768,45.68893041,144.68,144.67,0.03]
[1745350357266,38.77712505,144.68,144.67,0.03]
[1745350362470,45.68893041,144.68,144.67,0.03]
[1745350364166,49.1086634,144.68,144.67,0.03]
[1745350364380,49.1086634,144.68,144.66,0.03]
[1745350364381,50.7354634,144.68,144.66,0.03]
[1745350364551,19.30992505,144.67,144.66,0.03]
[1745350364759,19.30992505,144.67,144.63,0.063]
[1745350364760,26.0,144.64,144.63,0.063]
[1745350365065,38.77712505,144.64,144.63,0.063]
[1745350366575,45.69084186,144.64,144.63,0.063]
[1745350367164,38.77712505,144.64,144.63,0.063]
[1745350367883,11.95846337,144.68,144.63,0.063]
[1745350368060,12.77712505,144.66,144.63,0.063]
[1745350368259,12.77712505,144.65,144.63,0.063]
[1745350369682,12.77712505,144.64,144.63,0.063]
[1745350381686,19.69084186,144.64,144.63,0.063]
[1745350382188,26.0,144.62,144.61,0.03]
[1745350382372,89.88562525,144.62,144.61,0.03]
[1745350383480,12.77712505,144.61,144.6,0.03]
[1745350384776,26.0,144.59,144.58,0.03]
[1745350385089,38.77712505,144.59,144.58,0.03]
[1745350385464,45.69323266,144.59,144.58,0.03]
[1745350386184,45.69323266,144.59,144.57,0.03]
[1745350386376,12.77712505,144.58,144.57,0.03]
[1745350387690,19.69371102,144.58,144.57,0.03]
[1745350393688,70.80221122,144.58,144.52,18.67964886]
[1745350393885,12.77712505,144.57,144.52,18.67964886]
[1745350394393,63.88562525,144.57,144.52,18.67964886]
[1745350394591,26.0,144.54,144.52,0.03]
[1745350394761,12.77712505,144.53,144.52,0.03]
[1745350395272,19.6961038,144.53,144.52,0.03]
[1745350397593,12.77712505,144.53,144.52,0.03]
[1745350397894,19.6961038,144.53,144.52,0.03]
[1745350398569,25.34055231,144.53,144.52,0.03]
[1745350398971,19.6961038,144.53,144.52,0.03]
[1745350399575,26.0,144.53,144.52,0.03]
[1745350399774,38.77712505,144.53,144.52,0.03]
[1745350403702,45.6961038,144.53,144.52,0.03]
[1745350403876,19.6961038,144.53,144.52,0.03]
[1745350405399,38.77712505,144.53,144.52,0.03]
[1745350405901,12.47039047,144.56,144.52,0.03]
[1745350406076,38.77712505,144.53,144.52,0.03]
[1745350407897,45.6961038,144.53,144.52,0.03]
[1745350411601,19.6961038,144.53,144.52,0.03]
[1745350412878,45.6961038,144.53,144.52,0.03]
[1745350413079,19.6961038,144.53,144.52,0.03]
[1745350413391,6.92089417,144.49,144.48,0.03]
[1745350413709,19.69801922,144.49,144.48,0.03]
[1745350417181,23.13249026,144.49,144.48,0.03]
[1745350418015,74.24099046,144.49,144.48,0.03]
[1745350419210,26.0,144.47,144.46,0.03]
[1745350419416,38.77712505,144.47,144.46,0.03]
[1745350420216,45.69897733,144.47,144.46,0.03]
[1745350426586,63.00360804,144.47,144.4,1.6785]
[1745350426789,12.77712505,144.41,144.4,20.32814886]
[1745350427915,12.77712505,144.41,144.4,18.67964886]
[1745350429731,27.27911749,144.49,144.41,18.64964886]
[1745350429902,12.77712505,144.45,144.41,20.15454886]
[1745350430107,38.77712505,144.44,144.41,20.15454886]
[1745350430307,12.77712505,144.43,144.41,20.15454886]
[1745350431623,12.77712505,144.43,144.4,0.03]
[1745350431624,12.77712505,144.42,144.4,0.03]
[1745350431798,38.77712505,144.41,144.4,0.03]
[1745350434505,45.70185325,144.41,144.4,0.03]
[1745350435724,38.77712505,144.41,144.4,0.03]
[1745350436028,32.9247282,144.41,144.4,0.03]
[1745350436206,38.77712505,144.41,144.4,0.03]
[1745350437625,45.70185325,144.41,144.4,0.03]
[1745350437831,96.81035345,144.41,144.4,0.03]
[1745350439107,45.80477628,144.41,144.4,0.03]
[1745350439805,97.3249686,144.41,144.4,0.03]
[1745350441624,32.9247282,144.41,144.4,0.03]
[1745350441922,45.80477628,144.41,144.4,0.03]
[1745350442319,97.3249686,144.41,144.4,0.03]
[1745350443527,45.80477628,144.41,144.4,0.03]
[1745350443712,97.3249686,144.41,144.4,0.03]
[1745350445929,45.80477628,144.41,144.4,0.03]
[1745350446115,97.3249686,144.41,144.4,0.03]
[1745350446313,45.80477628,144.41,144.4,0.03]
[1745350448047,97.3249686,144.41,144.4,0.03]
[1745350448537,38.88004808,144.41,144.4,0.03]
[1745350449125,45.80477628,144.41,144.4,0.03]
[1745350450222,97.3249686,144.41,144.4,0.03]
[1745350453126,45.80477628,144.41,144.4,0.03]
[1745350453326,97.3249686,144.41,144.4,0.03]
[1745350455143,38.88004808,144.41,144.4,0.03]
[1745350455445,12.88004808,144.41,144.4,0.03]
[1745350455621,38.88004808,144.41,144.4,0.03]
[1745350456341,6.92233144,144.46,144.4,0.03]
[1745350456525,12.88004808,144.42,144.4,0.03]
[1745350456719,6.92185228,144.47,144.4,0.03]
[1745350457030,12.88004808,144.45,144.42,18.64964886]
[1745350457531,12.88004808,144.44,144.42,18.64964886]
[1745350458446,12.88004808,144.43,144.42,18.64964886]
[1745350458735,12.88004808,144.43,144.4,0.03]
[1745350458914,38.88004808,144.41,144.4,0.03]
[1745350460445,45.80477628,144.41,144.4,0.03]
[1745350464228,71.3249686,144.41,144.4,0.03]
[1745350466942,38.88004808,144.38,144.37,0.03]
[1745350467145,38.88004808,144.38,144.34,18.67964886]
[1745350467329,38.88004808,144.35,144.34,18.67964886]
[1745350469044,26.0,144.35,144.34,18.67964886]
[1745350469357,38.88004808,144.35,144.34,17.67964886]
[1745350470125,38.88004808,144.35,144.33,15.7864]
[1745350470330,12.88004808,144.34,144.33,15.7864]
[1745350470757,26.0,144.35,144.33,15.7864]
[1745350470938,12.88004808,144.34,144.33,15.7864]
[1745350471333,12.88004808,144.34,144.33,32.78964886]
[1745350471534,12.88004808,144.34,144.33,18.64964886]
[1745350472658,19.80813454,144.34,144.33,18.64964886]
[1745350472839,12.88004808,144.34,144.33,18.64964886]
[1745350473570,19.80813454,144.34,144.33,18.64964886]
[1745350474088,19.80813454,144.34,144.31,0.03]
[1745350474357,12.88004808,144.32,144.31,0.03]
[1745350476369,45.80909464,144.32,144.31,0.03]
[1745350476878,26.0,144.29,144.26,18.67964886]
[1745350477076,64.4002404,144.27,144.26,0.03]
[1745350477247,12.88004808,144.27,144.26,0.03]
[1745350477866,12.88004808,144.29,144.26,0.03]
[1745350478171,32.92974419,144.31,144.23,18.17964886]
[1745350478391,51.52019232,144.27,144.19,0.03]
[1745350478675,12.88004808,144.2,144.19,0.03]
[1745350478851,12.88004808,144.21,144.19,0.03]
[1745350479059,12.88004808,144.2,144.19,0.03]
[1745350479961,26.0,144.2,144.19,0.03]
[1745350480161,38.88004808,144.2,144.19,0.03]
[1745350481463,46.18201938,144.2,144.19,0.03]
[1745350481963,53.11683214,144.2,144.19,0.03]
[1745350482962,46.18201938,144.2,144.19,0.03]
[1745350486271,53.11683214,144.2,144.19,0.03]
[1745350491203,73.29885152,144.2,144.19,0.03]
[1745350491682,53.11683214,144.2,144.19,0.03]
[1745350492296,46.18201938,144.2,144.19,0.03]
[1745350493884,53.11683214,144.2,144.19,0.03]
[1745350499490,73.29885152,144.2,144.19,0.03]
[1745350499685,73.29885152,144.2,144.15,18.64964886]
[1745350499686,26.0,144.17,144.15,18.64964886]
[1745350499896,26.0,144.17,144.14,2.667883]
[1745350499897,20.18201938,144.16,144.14,1.094783]
[1745350500194,20.18201938,144.15,144.14,19.74443186]
[1745350502807,53.11923755,144.15,144.14,1.094783]
[1745350502996,27.11923755,144.15,144.14,1.094783]
[1745350503382,71.59047252,144.15,144.14,1.094783]
[1745350504087,19.86786904,144.15,144.14,1.094783]
[1745350504296,45.86786904,144.15,144.14,1.094783]
[1745350504907,38.93065087,144.15,144.14,1.094783]
[1745350505289,26.0,144.15,144.14,1.094783]
[1745350505605,38.93065087,144.15,144.14,1.094783]
[1745350506298,7.33538345,144.19,144.14,1.094783]
[1745350506499,7.33538345,144.19,144.15,18.64964886]
[1745350506685,12.93065087,144.17,144.15,18.64964886]
[1745350506892,12.93065087,144.16,144.15,18.64964886]
[1745350508801,32.93637768,144.17,144.14,1.094783]
[1745350509129,12.93065087,144.15,144.14,19.74443186]
[1745350510705,12.93065087,144.15,144.14,1.094783]
[1745350510915,12.93065087,144.15,144.14,0.1125828]
[1745350511208,45.86786904,144.15,144.14,0.1125828]
[1745350511613,38.93065087,144.15,144.14,0.1125828]
[1745350512106,45.86786904,144.15,144.14,0.1125828]
[1745350514900,38.93065087,144.15,144.14,0.1125828]
[1745350515612,45.86786904,144.15,144.14,0.1125828]
[1745350516107,71.59047252,144.15,144.14,0.1125828]
[1745350516985,71.59047252,144.15,144.11,1.0966771]
[1745350516986,26.0,144.12,144.11,1.0966771]
[1745350517195,38.93065087,144.12,144.11,1.0966771]
[1745350518808,45.86931309,144.12,144.11,1.0966771]
[1745350521116,6.93769945,144.14,144.11,1.0966771]
[1745350521294,38.93065087,144.12,144.11,1.0966771]
[1745350521496,12.93065087,144.13,144.11,1.0966771]
[1745350521902,12.93065087,144.12,144.11,1.0966771]
[1745350522102,38.93065087,144.12,144.11,1.0966771]
[1745350528429,38.93065087,144.12,144.11,0.0966771]
[1745350529826,26.0,144.12,144.11,0.0966771]
[1745350530125,38.93065087,144.12,144.11,0.0966771]
[1745350531021,45.86931309,144.12,144.11,0.0966771]
[1745350531825,38.93065087,144.12,144.11,0.0966771]
[1745350532322,45.86931309,144.12,144.11,0.0966771]
[1745350533811,19.86931309,144.12,144.11,0.0966771]
[1745350534429,19.86931309,144.12,144.08,0.03]
[1745350534430,26.0,144.09,144.08,0.03]
[1745350534620,38.93065087,144.09,144.08,0.03]
[1745350535130,45.87075774,144.09,144.08,0.03]
[1745350540237,49.25620378,144.09,144.08,0.03]
[1745350540733,12.93065087,144.09,144.08,0.03]
[1745350544410,19.87075774,144.09,144.08,0.03]
[1745350544811,12.93065087,144.09,144.08,0.03]
[1745350545039,19.87075774,144.09,144.08,0.03]
[1745350546325,19.87075774,144.09,144.0,9.92]
[1745350546326,12.93065087,144.02,144.0,9.92]
[1745350546527,12.93065087,144.01,144.0,9.92]
[1745350546728,12.93065087,144.03,144.0,9.92]
[1745350546930,32.94172869,144.06,144.01,18.64964886]
[1745350547136,12.93065087,144.04,144.01,18.64964886]
[1745350547319,12.93065087,144.04,144.01,17.64964886]
[1745350549031,12.93065087,144.04,144.01,17.24964886]
[1745350549535,12.93065087,144.04,144.01,31.44964886]
[1745350551330,45.87271698,144.05,144.01,31.44964886]
[1745350552145,38.93065087,144.05,144.01,31.44964886]
[1745350552939,12.93065087,144.04,144.01,31.44964886]
[1745350554450,12.93065087,144.02,144.01,31.44964886]
[1745350554654,12.93065087,144.02,144.0,9.92]
[1745350554826,6.94255571,144.04,144.0,9.92]
[1745350555146,12.93065087,144.02,144.0,9.92]
[1745350558938,12.93065087,144.01,144.0,9.92]
[1745350559654,12.93065087,144.02,144.0,9.92]
[1745350560058,12.93065087,144.03,144.01,18.64964886]
[1745350561826,12.93065087,144.04,144.01,18.64964886]
[1745350562939,12.93065087,144.03,144.01,18.64964886]
[1745350565052,26.0,144.05,144.01,18.64964886]
[1745350565354,12.93065087,144.04,144.01,18.64964886]
[1745350566155,17.41223056,144.1,144.01,18.64964886]
[1745350566354,38.93065087,144.06,144.02,14.2]
[1745350567565,12.93065087,144.05,144.02,14.2]
[1745350567856,12.93065087,144.04,144.02,14.2]
[1745350568358,12.93065087,144.06,144.03,18.64964886]
[1745350568654,26.0,144.05,144.03,18.64964886]
[1745350569260,12.93065087,144.06,144.03,18.64964886]
[1745350569558,38.93065087,144.06,144.03,18.64964886]
[1745350569858,12.93065087,144.06,144.03,18.64964886]
[1745350570240,12.93065087,144.07,144.03,18.64964886]
[1745350571344,38.93065087,144.08,144.03,20.16744886]
[1745350571653,12.93065087,144.08,144.03,20.16744886]
[1745350573660,12.93065087,144.06,144.03,20.16744886]
[1745350573853,12.93065087,144.04,144.03,18.64964886]
[1745350574056,12.93065087,144.05,144.03,18.64964886]
[1745350574367,12.93065087,144.06,144.03,18.64964886]
[1745350575149,32.94039498,144.09,144.03,18.64964886]
[1745350575448,12.93065087,144.05,144.02,14.2]
[1745350575654,12.93065087,144.04,144.02,14.2]
[1745350579349,6.94058856,144.08,144.03,18.64964886]
[1745350579554,12.93065087,144.07,144.03,18.64964886]
[1745350579873,12.93065087,144.06,144.03,18.64964886]
[1745350580867,12.93065087,144.05,144.03,18.64964886]
[1745350581579,12.93065087,144.04,144.03,18.64964886]
[1745350581878,12.93065087,144.05,144.03,18.64964886]
[1745350582580,12.93065087,144.06,144.03,18.64964886]
[1745350587655,12.93065087,144.05,144.03,18.64964886]
[1745350588077,6.94108404,144.07,144.02,14.2]
[1745350588078,12.93065087,144.04,144.02,14.2]
[1745350588467,12.93065087,144.05,144.03,18.64964886]
[1745350591988,6.94167627,144.06,144.03,18.64964886]
[1745350592160,12.93065087,144.05,144.03,18.64964886]
[1745350592681,12.93065087,144.04,144.02,14.2]
[1745350592870,12.93065087,144.03,144.02,32.84964886]
[1745350593263,12.93065087,144.04,144.02,32.84964886]
[1745350593893,12.93065087,144.03,144.02,32.84964886]
[1745350594955,12.93065087,144.04,144.02,32.84964886]
[1745350595978,26.0,144.06,144.03,18.64964886]
[1745350596301,12.93065087,144.05,144.03,18.64964886]
[1745350597077,12.93065087,144.04,144.02,14.2]
[1745350598301,12.93065087,144.03,144.02,14.2]
[1745350598679,12.93065087,144.04,144.02,14.2]
[1745350600201,12.93065087,144.03,144.02,14.2]
[1745350601998,6.94209588,144.05,144.02,14.2]
[1745350602299,12.93065087,144.03,144.02,14.2]
[1745350603492,12.93065087,144.03,144.0,9.92]
[1745350603686,12.93065087,144.01,144.0,9.92]
[1745350604409,6.94395811,144.02,144.0,9.92]
[1745350604703,12.93065087,144.01,144.0,9.92]
[1745350606715,6.94395811,144.02,144.0,9.92]
[1745350607006,12.93065087,144.01,144.0,9.92]
[1745350608392,19.87461309,144.01,144.0,9.92]
[1745350608916,45.87461309,144.01,144.0,9.92]
[1745350609690,26.15731309,144.01,144.0,7.21469198]
[1745350610014,26.0,143.98,143.93,18.64964886]
[1745350610203,12.93065087,143.95,143.93,18.64964886]
[1745350610712,12.93065087,143.96,143.93,18.64964886]
[1745350611090,26.0,143.98,143.93,18.64964886]
[1745350611495,26.0,143.97,143.93,18.64964886]
[1745350611910,6.94299798,144.03,143.93,99.45416156]
[1745350612098,12.93065087,144.0,143.93,99.45416156]
[1745350613499,32.94351205,144.02,143.93,100.45416156]
[1745350613500,26.0,144.02,143.93,100.45416156]
[1745350613701,12.93065087,144.02,143.93,100.45416156]
[1745350615025,12.93065087,144.01,143.93,99.45416156]
[1745350615310,12.93065087,144.01,143.93,100.45416156]
[1745350615501,12.93065087,144.01,143.93,99.45416156]
[1745350615691,12.93065087,144.0,143.93,99.45416156]
[1745350616093,12.93065087,144.0,143.94,18.64964886]
[1745350616503,12.93065087,144.01,143.94,18.64964886]
[1745350617418,12.93065087,144.01,143.94,21.42854648]
[1745350617916,12.93065087,144.0,143.94,18.64964886]
[1745350618219,12.93065087,144.0,143.94,96.67511186]
[1745350619097,12.93065087,144.0,143.94,99.45402716]
[1745350619624,12.93065087,144.0,143.94,99.41486113]
[1745350620199,12.93065087,144.0,143.94,96.63594583]
[1745350620521,12.93065087,144.0,143.94,18.61048283]
[1745350621822,12.93065087,144.0,143.93,18.64964886]
[1745350622117,19.87509914,144.0,143.93,18.64964886]
[1745350622293,12.93065087,143.99,143.93,18.64964886]
[1745350622823,12.93065087,143.98,143.93,18.64964886]
[1745350623432,12.93065087,143.97,143.93,18.64964886]
[1745350623604,12.93065087,143.96,143.93,18.64964886]
[1745350623796,12.93065087,143.97,143.93,18.64964886]
[1745350625116,6.94548044,143.98,143.93,18.64964886]
[1745350625117,12.93065087,143.94,143.93,18.64964886]
[1745350625926,19.87799003,143.94,143.93,18.64964886]
[1745350626105,19.87799003,143.94,143.92,14.1]
[1745350626315,12.93065087,143.93,143.92,32.74964886]
[1745350626697,6.0117,143.92,143.82,15.1966771]
[1745350626921,6.0117,143.92,143.83,1.6461]
[1745350627097,12.93065087,143.89,143.83,1.6461]
[1745350627301,12.93065087,143.88,143.83,1.6461]
[1745350627703,12.93065087,143.88,143.84,18.64964886]
[1745350628214,12.93065087,143.88,143.82,15.1966771]
[1745350628215,6.95037326,143.88,143.82,15.1966771]
[1745350628419,12.93065087,143.88,143.82,15.1966771]
[1745350628617,12.93065087,143.9,143.83,19.64964886]
[1745350628812,19.87955732,143.91,143.84,1.6461]
[1745350629238,26.0,143.92,143.84,1.6461]
[1745350629399,12.93065087,143.91,143.84,1.6461]
[1745350629708,32.94846883,143.92,143.84,1.6461]
[1745350629901,12.93065087,143.91,143.84,1.6461]
[1745350630206,12.93065087,143.9,143.84,1.6461]
[1745350630814,12.93065087,143.91,143.84,1.6461]
[1745350631412,12.93065087,143.9,143.84,1.6461]
[1745350631817,12.93065087,143.89,143.84,1.6461]
[1745350631998,12.93065087,143.9,143.84,1.6461]
[1745350632717,12.93065087,143.89,143.84,1.6461]
[1745350633204,12.93065087,143.88,143.84,1.6461]
[1745350633525,12.93065087,143.89,143.84,1.6461]
[1745350634297,6.94924469,143.91,143.84,1.6461]
[1745350634614,12.93065087,143.92,143.84,1.6461]
[1745350635016,12.93065087,143.91,143.84,1.6461]
[1745350635523,12.93065087,143.9,143.84,1.6461]
[1745350636331,19.88018688,143.9,143.84,1.6461]
[1745350636912,6.94953601,143.9,143.84,1.6461]
[1745350637121,19.88018688,143.9,143.84,1.6461]
[1745350638233,12.93065087,143.9,143.85,18.64964886]
[1745350639145,12.93065087,143.89,143.85,18.64964886]
[1745350640240,19.88013522,143.9,143.85,18.64964886]
[1745350640807,6.94948435,143.9,143.85,18.64964886]
[1745350641013,12.93065087,143.9,143.85,18.64964886]
[1745350641511,12.93065087,143.91,143.85,18.64964886]
[1745350642441,12.93065087,143.9,143.85,18.64964886]
[1745350642914,6.94842043,143.92,143.85,18.64964886]
[1745350643113,12.93065087,143.91,143.87,18.64964886]
[1745350644417,12.93065087,143.9,143.87,18.64964886]
[1745350644734,12.93065087,143.91,143.87,18.64964886]
[1745350644914,12.93065087,143.9,143.87,18.64964886]
[1745350645740,12.93065087,143.91,143.87,18.64964886]
[1745350646437,12.93065087,143.9,143.87,18.64964886]
[1745350647830,12.93065087,143.91,143.87,18.64964886]
[1745350649045,12.93065087,143.9,143.87,18.64964886]
[1745350650247,12.93065087,143.88,143.87,18.64964886]
[1745350650947,12.93065087,143.89,143.87,18.64964886]
[1745350651126,32.94900173,143.91,143.87,18.64964886]
[1745350651328,12.93065087,143.9,143.87,18.64964886]
[1745350652252,12.93065087,143.9,143.87,18.14964886]
[1745350652447,12.93065087,143.89,143.87,18.14964886]
[1745350654850,7.5428,143.96,143.87,18.14964886]
[1745350655156,12.93065087,143.93,143.87,18.14964886]
[1745350656971,12.93065087,143.92,143.87,18.14964886]
[1745350659641,12.93065087,143.89,143.87,18.56714886]
[1745350661255,12.93065087,143.88,143.87,18.56714886]
[1745350661646,12.93065087,143.89,143.87,18.56714886]
[1745350662137,26.0,143.95,143.87,18.56714886]
[1745350662343,32.94737537,143.94,143.87,18.56714886]
[1745350662567,12.93065087,143.91,143.87,18.56714886]
[1745350663151,12.93065087,143.9,143.87,18.56714886]
[1745350663463,12.93065087,143.89,143.87,18.56714886]
[1745350663751,12.93065087,143.9,143.87,18.56714886]
[1745350664151,32.94737537,143.94,143.87,18.56714886]
[1745350664152,12.93065087,143.89,143.87,18.56714886]
[1745350664651,6.94868367,143.92,143.87,18.56714886]
[1745350664854,12.93065087,143.9,143.87,18.56714886]
[1745350665559,12.93065087,143.92,143.87,18.56714886]
[1745350665746,32.94763745,143.94,143.87,18.56714886]
[1745350665952,12.93065087,143.92,143.87,18.56714886]
[1745350668753,7.5428,143.96,143.87,21.34730486]
[1745350668963,6.0117,143.96,143.87,47.34730486]
[1745350669143,6.0117,143.96,143.87,48.34730486]
[1745350669343,18.94235087,143.96,143.87,47.34730486]
[1745350669654,12.93065087,143.95,143.87,48.34730486]
[1745350670155,12.93065087,143.95,143.89,21.42955017]
[1745350672354,12.93065087,143.97,143.89,23.08945017]
[1745350673465,12.93065087,143.99,143.91,18.64964886]
[1745350673768,12.93065087,143.99,143.9,27.27072371]
[1745350673769,12.93065087,143.99,143.93,18.64964886]
[1745350674159,12.93065087,143.98,143.93,18.64964886]
[1745350674586,8.0661,144.0,143.93,18.64964886]
[1745350674760,12.93065087,143.98,143.93,18.64964886]
[1745350674953,12.93065087,143.97,143.93,18.64964886]
[1745350675261,12.93065087,143.95,143.93,18.64964886]
[1745350676850,6.94595886,143.97,143.93,18.64964886]
[1745350677051,12.93065087,143.95,143.93,18.64964886]
[1745350679765,12.93065087,143.94,143.93,18.64964886]
[1745350680098,12.93065087,143.94,143.89,1.6599]
[1745350680099,26.0,143.91,143.84,18.64964886]
[1745350680261,12.93065087,143.86,143.82,36.83334736]
[1745350680457,26.0,143.91,143.82,36.83340195]
[1745350680656,12.93065087,143.87,143.82,34.05215398]
[1745350680873,12.93065087,143.87,143.83,18.64964886]
[1745350681675,12.93065087,143.84,143.82,15.3966771]
[1745350681880,12.93065087,143.83,143.82,15.3966771]
[1745350682377,19.8833033,143.83,143.82,1.0966771]
[1745350682757,12.93065087,143.83,143.82,19.74632596]
[1745350683377,20.28151587,143.83,143.82,19.74632596]
[1745350683683,20.28151587,143.84,143.82,19.74632596]
[1745350683982,20.28151587,143.85,143.83,18.64964886]
[1745350684181,20.28151587,143.84,143.82,1.0966771]
[1745350684676,6.5928,143.87,143.82,1.0966771]
[1745350684858,20.28151587,143.85,143.82,1.0966771]
[1745350685272,20.28151587,143.84,143.82,1.0966771]
[1745350686369,6.95143516,143.86,143.82,1.0966771]
[1745350686572,20.28151587,143.83,143.82,1.0966771]
[1745350688462,6.95216959,143.84,143.82,1.0966771]
[1745350688790,20.28151587,143.83,143.82,1.0966771]
[1745350689314,20.28151587,143.84,143.82,1.0966771]
[1745350689672,13.54365994,143.87,143.82,1.0966771]
[1745350689876,20.28151587,143.83,143.82,1.0966771]
[1745350692783,20.28151587,143.83,143.82,19.74632596]
[1745350693689,20.28151587,143.83,143.82,20.16382596]
[1745350695873,27.2341683,143.83,143.82,1.5141771]
[1745350697297,20.28151587,143.83,143.82,1.5141771]
[1745350698602,27.2341683,143.83,143.82,1.5141771]
[1745350699585,20.28151587,143.83,143.82,1.5141771]
[1745350699992,27.2341683,143.83,143.82,1.5141771]
[1745350701482,26.0,143.85,143.82,20.16382596]
[1745350701803,20.28151587,143.83,143.82,20.16382596]
[1745350702186,26.0,143.85,143.83,18.64964886]
[1745350702505,20.28151587,143.85,143.82,1.5141771]
[1745350703480,20.28151587,143.84,143.82,1.5141771]
[1745350703700,20.28151587,143.85,143.82,1.5141771]
[1745350705305,12.97075817,143.87,143.82,1.5141771]
[1745350705597,6.94940303,143.9,143.83,18.64964886]
[1745350705783,12.97075817,143.87,143.85,18.64964886]
[1745350706180,12.97075817,143.86,143.82,1.5141771]
[1745350706411,26.0,143.88,143.83,18.64964886]
[1745350706595,12.97075817,143.84,143.83,18.64964886]
[1745350706785,32.9504134,143.88,143.83,18.64964886]
[1745350707192,12.97075817,143.85,143.83,18.64964886]
[1745350707500,12.97075817,143.84,143.83,18.64964886]
[1745350708697,32.9504134,143.88,143.83,18.64964886]
[1745350708904,12.97075817,143.84,143.83,18.64964886]
[1745350710079,12.97075817,143.84,143.82,1.0966771]
[1745350710080,6.95265243,143.83,143.82,1.0966771]
[1745350710291,19.9234106,143.83,143.82,1.0966771]
[1745350712806,32.95361935,143.81,143.8,14.94]
[1745350712986,45.92437752,143.81,143.8,14.94]
[1745350714517,45.92437752,143.81,143.76,18.64964886]
[1745350714685,12.97075817,143.77,143.76,18.64964886]
[1745350716220,6.95475985,143.79,143.76,18.64964886]
[1745350716398,12.97075817,143.77,143.76,18.64964886]
[1745350717211,19.92631217,143.77,143.75,18.64964886]
[1745350717518,12.97075817,143.76,143.75,18.64964886]
[1745350718803,6.95410292,143.8,143.75,18.64964886]
[1745350719333,12.97075817,143.78,143.75,18.64964886]
[1745350719683,12.97075817,143.77,143.75,18.64964886]
[1745350719890,32.9537319,143.81,143.75,18.64964886]
[1745350720208,12.97075817,143.79,143.75,18.64964886]
[1745350720622,12.97075817,143.78,143.75,18.64964886]
[1745350721302,12.97075817,143.77,143.75,18.64964886]
[1745350721892,6.95361935,143.81,143.75,18.64964886]
[1745350722091,12.97075817,143.77,143.75,18.64964886]
[1745350722413,12.97075817,143.78,143.75,18.64964886]
[1745350723014,12.97075817,143.78,143.75,19.06714886]
[1745350723211,12.97075817,143.77,143.75,19.06714886]
[1745350725496,26.0,143.82,143.75,19.06714886]
[1745350725497,12.97075817,143.76,143.75,19.06714886]
[1745350727125,12.97075817,143.76,143.75,0.4175]
[1745350727506,19.92679601,143.76,143.75,0.4175]
[1745350729229,27.5766,143.73,143.65,86.50635299]
[1745350729440,12.97075817,143.7,143.65,86.50635299]
[1745350729725,26.0,143.75,143.66,18.64964886]
[1745350729927,12.97075817,143.73,143.66,100.64964886]
[1745350730899,12.97075817,143.73,143.66,102.73784965]
[1745350731225,6.95615617,143.76,143.66,102.73784965]
[1745350731527,12.97075817,143.72,143.66,102.73784965]
[1745350731727,12.97075817,143.74,143.66,102.73784965]
[1745350732026,1.5766,143.81,143.7,18.64964886]
[1745350732207,6.293,143.82,143.72,18.64964886]
[1745350732524,6.293,143.82,143.72,126.64964886]
[1745350732734,12.97075817,143.8,143.72,126.64964886]
[1745350732907,12.97075817,143.79,143.74,18.64964886]
[1745350733108,12.97075817,143.79,143.74,100.64964886]
[1745350733418,20.28750312,143.79,143.74,100.64964886]
[1745350735026,20.28750312,143.78,143.74,100.64964886]
[1745350735205,13.24632549,143.82,143.74,100.64964886]
[1745350735408,20.28750312,143.79,143.74,100.64964886]
[1745350735708,20.28750312,143.78,143.74,100.64964886]
[1745350736321,20.28750312,143.77,143.74,100.64964886]
[1745350736539,20.28750312,143.78,143.74,100.64964886]
[1745350737224,20.28750312,143.76,143.74,100.64964886]
[1745350737417,20.28750312,143.75,143.72,18.64964886]
[1745350737621,20.28750312,143.73,143.72,18.64964886]
[1745350737929,20.28750312,143.78,143.72,18.64964886]
[1745350738116,20.28750312,143.74,143.72,18.64964886]
[1745350740306,20.28750312,143.75,143.72,18.64964886]
[1745350741316,20.28750312,143.75,143.72,100.64964886]
[1745350741842,20.28750312,143.76,143.72,102.73703377]
[1745350742013,6.293,143.82,143.72,102.73703377]